[Event "*** Titled Tuesday Blitz"]
[Site "Chess.com"]
[Date "2018.05.01"]
[Round "6"]
[White "GMMatamoros"]
[Black "jk13"]
[Result "0-1"]
[WhiteElo "2505"]
[BlackElo "2528"]
[TimeControl "180+2"]
[EndTime "14:21:55 PDT"]
[Termination "jk13 won by resignation"]

1. Nf3 {[%clk 0:03:01.9]} 1... Nf6 {[%clk 0:03:00.7]} 2. c4 {[%clk 0:03:02.2]}
2... e6 {[%clk 0:03:02]} 3. g3 {[%clk 0:03:02.8]} 3... d5 {[%clk 0:03:02.8]} 4.
Bg2 {[%clk 0:03:00.8]} 4... dxc4 {[%clk 0:03:03.9]} 5. Qa4+ {[%clk 0:03:00.7]}
5... c6 {[%clk 0:03:04.6]} 6. Qxc4 {[%clk 0:03:00.4]} 6... b5 {[%clk 0:03:06.2]}
7. Qb3 {[%clk 0:02:50.3]} 7... Bb7 {[%clk 0:03:04.6]} 8. d4 {[%clk 0:02:25.9]}
8... Nbd7 {[%clk 0:03:05.9]} 9. Ne5 {[%clk 0:01:17.9]} 9... Nxe5 {[%clk
0:02:54.9]} 10. dxe5 {[%clk 0:01:03.6]} 10... Nd7 {[%clk 0:02:56.8]} 11. O-O
{[%clk 0:00:45.3]} 11... Qb6 {[%clk 0:02:56.4]} 12. Nc3 {[%clk 0:00:41.9]} 12...
a6 {[%clk 0:02:52.1]} 13. Ne4 {[%clk 0:00:39.9]} 13... c5 {[%clk 0:02:50.8]} 14.
Bf4 {[%clk 0:00:36.3]} 14... Bd5 {[%clk 0:02:32.2]} 15. Qf3 {[%clk 0:00:29.3]}
15... Qb7 {[%clk 0:02:15.1]} 16. Rad1 {[%clk 0:00:19.9]} 16... Be7 {[%clk
0:02:11.5]} 17. Rxd5 {[%clk 0:00:18.6]} 17... exd5 {[%clk 0:02:13.4]} 18. Nd6+
{[%clk 0:00:18.6]} 18... Bxd6 {[%clk 0:02:14.6]} 19. exd6 {[%clk 0:00:20.5]}
19... O-O {[%clk 0:02:10.8]} 20. Rd1 {[%clk 0:00:21.4]} 20... Nb6 {[%clk
0:01:49.9]} 21. Qh5 {[%clk 0:00:19.1]} 21... f5 {[%clk 0:01:48.6]} 22. g4 {[%clk
0:00:17.8]} 22... fxg4 {[%clk 0:01:34.4]} 23. Qxg4 {[%clk 0:00:18.2]} 23... Qf7
{[%clk 0:01:32.3]} 24. Bg3 {[%clk 0:00:17.7]} 24... Rae8 {[%clk 0:01:28.8]} 25.
b4 {[%clk 0:00:17.8]} 25... h5 {[%clk 0:01:17.3]} 26. Qh4 {[%clk 0:00:17.1]}
26... cxb4 {[%clk 0:00:57.1]} 27. Qd4 {[%clk 0:00:17.8]} 27... Qb7 {[%clk
0:00:56.5]} 28. Rc1 {[%clk 0:00:18.2]} 28... Rf7 {[%clk 0:00:45.2]} 29. Rc7
{[%clk 0:00:18.6]} 29... Rxc7 {[%clk 0:00:42.4]} 30. dxc7 {[%clk 0:00:20.5]}
30... Qc6 {[%clk 0:00:35.4]} 31. Bf3 {[%clk 0:00:21.2]} 31... a5 {[%clk
0:00:31.4]} 32. Bxh5 {[%clk 0:00:21.9]} 32... Rf8 {[%clk 0:00:24.7]} 33. Bg4
{[%clk 0:00:22.6]} 33... Nc8 {[%clk 0:00:18.2]} 34. Qe5 {[%clk 0:00:23.1]} 34...
Re8 {[%clk 0:00:13.6]} 35. Qf5 {[%clk 0:00:08.7]} 35... a4 {[%clk 0:00:09.6]}
36. Qxc8 {[%clk 0:00:09.6]} 36... Rxc8 {[%clk 0:00:10.3]} 37. Bxc8 {[%clk
0:00:11.5]} 37... b3 {[%clk 0:00:11.8]} 38. axb3 {[%clk 0:00:12]} 38... axb3
{[%clk 0:00:13.7]} 39. Bf5 {[%clk 0:00:12.5]} 39... b2 {[%clk 0:00:10.2]} 40.
Be5 {[%clk 0:00:12.5]} 40... g6 {[%clk 0:00:10.5]} 41. Bg4 {[%clk 0:00:11.3]}
41... Qc1+ {[%clk 0:00:10.8]} 42. Kg2 {[%clk 0:00:06.7]} 42... b1=Q {[%clk
0:00:12.7]} 0-1

[Event "*** Titled Tuesday Blitz"]
[Site "Chess.com"]
[Date "2018.05.01"]
[Round "6"]
[White "2Tilted"]
[Black "Kimster98"]
[Result "0-1"]
[WhiteElo "2284"]
[BlackElo "2526"]
[TimeControl "180+2"]
[EndTime "14:22:09 PDT"]
[Termination "Kimster98 won by resignation"]

1. d4 {[%clk 0:03:01.9]} 1... Nf6 {[%clk 0:03:00.5]} 2. Nf3 {[%clk 0:03:01]}
2... d6 {[%clk 0:02:59.4]} 3. c4 {[%clk 0:03:01.2]} 3... g6 {[%clk 0:02:59.9]}
4. Nc3 {[%clk 0:03:01.9]} 4... Bg7 {[%clk 0:03:00.3]} 5. e4 {[%clk 0:03:02.9]}
5... O-O {[%clk 0:03:00.9]} 6. Be2 {[%clk 0:03:04.1]} 6... Nbd7 {[%clk
0:03:02.2]} 7. O-O {[%clk 0:03:04.5]} 7... e5 {[%clk 0:03:03.7]} 8. Qc2 {[%clk
0:03:03.6]} 8... c6 {[%clk 0:03:01.4]} 9. Rd1 {[%clk 0:03:02.1]} 9... Qe7 {[%clk
0:03:02.5]} 10. d5 {[%clk 0:03:03.2]} 10... c5 {[%clk 0:03:02.5]} 11. a3 {[%clk
0:02:52.1]} 11... Ne8 {[%clk 0:03:01.6]} 12. b4 {[%clk 0:02:50.2]} 12... h6
{[%clk 0:02:53.8]} 13. bxc5 {[%clk 0:02:13.9]} 13... Nxc5 {[%clk 0:02:54.1]} 14.
Rb1 {[%clk 0:02:15.8]} 14... f5 {[%clk 0:02:49.7]} 15. Nd2 {[%clk 0:02:15.3]}
15... f4 {[%clk 0:02:45.5]} 16. Nb3 {[%clk 0:02:11.3]} 16... b6 {[%clk
0:02:42.4]} 17. Nxc5 {[%clk 0:02:11.7]} 17... bxc5 {[%clk 0:02:43.3]} 18. Qa4
{[%clk 0:01:55.5]} 18... Bd7 {[%clk 0:02:20.7]} 19. Qa6 {[%clk 0:01:55.8]} 19...
Nc7 {[%clk 0:01:44.7]} 20. Qb7 {[%clk 0:01:40.7]} 20... Rfc8 {[%clk 0:01:40.7]}
21. Bd2 {[%clk 0:01:17.6]} 21... Qd8 {[%clk 0:01:27.5]} 22. Qb3 {[%clk
0:01:07.5]} 22... Rcb8 {[%clk 0:01:22.2]} 23. Qc2 {[%clk 0:01:08]} 23... Qe8
{[%clk 0:01:04.7]} 24. a4 {[%clk 0:01:00.9]} 24... a6 {[%clk 0:01:01]} 25. a5
{[%clk 0:00:59.4]} 25... Rb4 {[%clk 0:01:00.1]} 26. Rxb4 {[%clk 0:00:55.9]}
26... cxb4 {[%clk 0:01:00.3]} 27. Na2 {[%clk 0:00:57.8]} 27... Ba4 {[%clk
0:00:58.8]} 28. Qb2 {[%clk 0:00:57.5]} 28... Bxd1 {[%clk 0:00:58.6]} 29. Bxd1
{[%clk 0:00:59.4]} 29... Rb8 {[%clk 0:00:43.6]} 30. Bxb4 {[%clk 0:01:00.4]}
30... Qd7 {[%clk 0:00:42.1]} 31. Qa3 {[%clk 0:00:59.4]} 31... Bf8 {[%clk
0:00:42]} 32. Ba4 {[%clk 0:00:58.5]} 32... Qd8 {[%clk 0:00:43.1]} 33. Nc3 {[%clk
0:00:56]} 33... f3 {[%clk 0:00:21.4]} 34. g3 {[%clk 0:00:38.9]} 34... g5 {[%clk
0:00:18.7]} 35. h3 {[%clk 0:00:36.8]} 35... h5 {[%clk 0:00:17.7]} 36. g4 {[%clk
0:00:36.1]} 36... hxg4 {[%clk 0:00:18.8]} 37. hxg4 {[%clk 0:00:38]} 37... Qc8
{[%clk 0:00:20.3]} 38. Kf1 {[%clk 0:00:35.1]} 38... Qxg4 {[%clk 0:00:20.3]} 39.
Nd1 {[%clk 0:00:34.1]} 39... Qg2+ {[%clk 0:00:21.2]} 40. Ke1 {[%clk 0:00:35.3]}
40... Qg1+ {[%clk 0:00:22.6]} 41. Kd2 {[%clk 0:00:36.5]} 41... g4 {[%clk
0:00:23]} 42. Bxd6 {[%clk 0:00:36.1]} 42... g3 {[%clk 0:00:24.4]} 43. Qxf3
{[%clk 0:00:28.7]} 43... gxf2 {[%clk 0:00:21.5]} 44. Nxf2 {[%clk 0:00:14.8]}
44... Bxd6 {[%clk 0:00:21.6]} 45. Ng4 {[%clk 0:00:10.1]} 45... Rb2+ {[%clk
0:00:19.3]} 46. Bc2 {[%clk 0:00:11.5]} 46... Bb4+ {[%clk 0:00:19.2]} 47. Kd3
{[%clk 0:00:12.1]} 47... Qd4+ {[%clk 0:00:20]} 48. Ke2 {[%clk 0:00:10.4]} 48...
Rxc2+ {[%clk 0:00:21.6]} 49. Kf1 {[%clk 0:00:12.1]} 49... Qa1+ {[%clk
0:00:22.7]} 0-1

[Event "*** Titled Tuesday Blitz"]
[Site "Chess.com"]
[Date "2018.05.01"]
[Round "6"]
[White "Fy_Rakotomaharo"]
[Black "Jbd735"]
[Result "0-1"]
[WhiteElo "2487"]
[BlackElo "2350"]
[TimeControl "180+2"]
[EndTime "14:22:15 PDT"]
[Termination "Jbd735 won by resignation"]

1. e4 {[%clk 0:03:01.9]} 1... e5 {[%clk 0:03:00]} 2. Nf3 {[%clk 0:03:02.8]} 2...
Nc6 {[%clk 0:03:00.3]} 3. Bb5 {[%clk 0:03:04.4]} 3... a6 {[%clk 0:03:00.8]} 4.
Ba4 {[%clk 0:03:06]} 4... Nf6 {[%clk 0:03:01.4]} 5. O-O {[%clk 0:03:07.6]} 5...
Be7 {[%clk 0:03:00.9]} 6. Re1 {[%clk 0:03:09.1]} 6... b5 {[%clk 0:03:01.4]} 7.
Bb3 {[%clk 0:03:10.7]} 7... d6 {[%clk 0:03:02.1]} 8. c3 {[%clk 0:03:11.7]} 8...
O-O {[%clk 0:03:02.7]} 9. h3 {[%clk 0:03:12.9]} 9... Na5 {[%clk 0:03:03.3]} 10.
Bc2 {[%clk 0:03:14.1]} 10... c5 {[%clk 0:03:04]} 11. d4 {[%clk 0:03:14.9]} 11...
Qc7 {[%clk 0:03:04.5]} 12. Nbd2 {[%clk 0:03:14.1]} 12... Nc6 {[%clk 0:03:05.2]}
13. d5 {[%clk 0:03:09.1]} 13... Nd8 {[%clk 0:03:05.4]} 14. b3 {[%clk 0:03:09.8]}
14... Ne8 {[%clk 0:03:05.2]} 15. c4 {[%clk 0:03:05]} 15... g6 {[%clk 0:03:00]}
16. Nf1 {[%clk 0:03:03.5]} 16... Ng7 {[%clk 0:02:59]} 17. a4 {[%clk 0:02:49.9]}
17... bxc4 {[%clk 0:02:15.3]} 18. bxc4 {[%clk 0:02:50.3]} 18... f5 {[%clk
0:02:15.4]} 19. N3d2 {[%clk 0:02:46.7]} 19... Nf7 {[%clk 0:02:10.5]} 20. Rb1
{[%clk 0:02:40.1]} 20... Bd7 {[%clk 0:02:09.4]} 21. Ne3 {[%clk 0:02:35.3]} 21...
f4 {[%clk 0:01:49.9]} 22. Nef1 {[%clk 0:02:34.9]} 22... g5 {[%clk 0:01:47.6]}
23. Nh2 {[%clk 0:02:32.1]} 23... h5 {[%clk 0:01:47.2]} 24. f3 {[%clk 0:02:28.1]}
24... Ne8 {[%clk 0:01:33.6]} 25. Qe2 {[%clk 0:02:28]} 25... Nf6 {[%clk
0:01:33.6]} 26. Bb2 {[%clk 0:02:24]} 26... Kh8 {[%clk 0:01:26.5]} 27. Kh1 {[%clk
0:02:12.1]} 27... Rg8 {[%clk 0:01:26.5]} 28. Rf1 {[%clk 0:02:04.5]} 28... Rg7
{[%clk 0:01:24.7]} 29. Bc3 {[%clk 0:02:00.8]} 29... Rag8 {[%clk 0:01:12.8]} 30.
a5 {[%clk 0:01:27.5]} 30... g4 {[%clk 0:01:10.8]} 31. fxg4 {[%clk 0:01:28.8]}
31... hxg4 {[%clk 0:01:11]} 32. hxg4 {[%clk 0:01:22.8]} 32... Nxg4 {[%clk
0:00:44.8]} 33. Nxg4 {[%clk 0:01:21.6]} 33... Bxg4 {[%clk 0:00:44.8]} 34. Qd3
{[%clk 0:01:07]} 34... Bh4 {[%clk 0:00:39.7]} 35. g3 {[%clk 0:00:41.2]} 35...
Bxg3 {[%clk 0:00:37.5]} 36. Kg2 {[%clk 0:00:42.4]} 36... Rh7 {[%clk 0:00:30.8]}
37. Rh1 {[%clk 0:00:41.8]} 37... Ng5 {[%clk 0:00:30.8]} 38. Rxh7+ {[%clk
0:00:39.8]} 38... Qxh7 {[%clk 0:00:19.6]} 39. Rh1 {[%clk 0:00:40.5]} 39... Bh3+
{[%clk 0:00:19.9]} 40. Kg1 {[%clk 0:00:41.2]} 40... Be1 {[%clk 0:00:15.1]} 41.
Rxh3 {[%clk 0:00:06.7]} 41... Nxh3+ {[%clk 0:00:12.5]} 42. Kf1 {[%clk
0:00:05.8]} 42... Rg1+ {[%clk 0:00:08.7]} 43. Ke2 {[%clk 0:00:07.3]} 43... Qh5+
{[%clk 0:00:06.6]} 44. Nf3 {[%clk 0:00:08.4]} 44... Bxc3 {[%clk 0:00:06.8]} 45.
Qxc3 {[%clk 0:00:09.3]} 45... Ng5 {[%clk 0:00:05.5]} 46. Bd1 {[%clk 0:00:08]}
46... Rxd1 {[%clk 0:00:03.9]} 47. Kxd1 {[%clk 0:00:08.9]} 47... Qxf3+ {[%clk
0:00:04.5]} 48. Qxf3 {[%clk 0:00:10.4]} 48... Nxf3 {[%clk 0:00:06.3]} 0-1

[Event "*** Titled Tuesday Blitz"]
[Site "Chess.com"]
[Date "2018.05.01"]
[Round "6"]
[White "LisikValera"]
[Black "MartinMatthiesen"]
[Result "1/2-1/2"]
[WhiteElo "2415"]
[BlackElo "2361"]
[TimeControl "180+2"]
[EndTime "14:22:20 PDT"]
[Termination "Game drawn - insufficient material"]

1. d4 {[%clk 0:03:00.6]} 1... Nf6 {[%clk 0:02:58]} 2. Nf3 {[%clk 0:03:00.6]}
2... e6 {[%clk 0:02:55.4]} 3. c4 {[%clk 0:03:01.3]} 3... d5 {[%clk 0:02:55.6]}
4. Nc3 {[%clk 0:03:01.7]} 4... c6 {[%clk 0:02:53.3]} 5. cxd5 {[%clk 0:03:01.9]}
5... exd5 {[%clk 0:02:53.5]} 6. Bg5 {[%clk 0:03:02.3]} 6... h6 {[%clk
0:02:53.8]} 7. Bh4 {[%clk 0:03:02]} 7... Bf5 {[%clk 0:02:54.2]} 8. Qb3 {[%clk
0:02:55.6]} 8... g5 {[%clk 0:02:52.9]} 9. Bg3 {[%clk 0:02:55.9]} 9... Qb6 {[%clk
0:02:52.3]} 10. e3 {[%clk 0:02:44.7]} 10... Nbd7 {[%clk 0:02:51.8]} 11. Be2
{[%clk 0:02:40.3]} 11... Be7 {[%clk 0:02:25]} 12. O-O {[%clk 0:02:36.3]} 12...
O-O {[%clk 0:02:16.6]} 13. Ne5 {[%clk 0:02:31.4]} 13... Nxe5 {[%clk 0:02:13.7]}
14. Bxe5 {[%clk 0:02:30.7]} 14... Ne4 {[%clk 0:02:14]} 15. Nxe4 {[%clk
0:02:27.2]} 15... Bxe4 {[%clk 0:02:14.7]} 16. Qc3 {[%clk 0:02:21.1]} 16... Qb4
{[%clk 0:02:05.5]} 17. Rac1 {[%clk 0:02:06.8]} 17... Qxc3 {[%clk 0:02:03.9]} 18.
Rxc3 {[%clk 0:02:06.9]} 18... a5 {[%clk 0:02:01]} 19. a3 {[%clk 0:02:06]} 19...
a4 {[%clk 0:01:53.1]} 20. Bd1 {[%clk 0:01:53.5]} 20... Rfe8 {[%clk 0:01:51.3]}
21. Bc2 {[%clk 0:01:49.9]} 21... Bxc2 {[%clk 0:01:47.1]} 22. Rxc2 {[%clk
0:01:49.9]} 22... Bf8 {[%clk 0:01:47.6]} 23. g4 {[%clk 0:01:41.6]} 23... Bg7
{[%clk 0:01:33.8]} 24. Bxg7 {[%clk 0:01:41.4]} 24... Kxg7 {[%clk 0:01:34.8]} 25.
Rc3 {[%clk 0:01:42.7]} 25... Re4 {[%clk 0:01:33.6]} 26. f3 {[%clk 0:01:42.6]}
26... Re6 {[%clk 0:01:34]} 27. Kf2 {[%clk 0:01:42.6]} 27... Kg6 {[%clk
0:01:29.4]} 28. Rh1 {[%clk 0:01:25.9]} 28... f5 {[%clk 0:01:28.6]} 29. gxf5+
{[%clk 0:01:23.6]} 29... Kxf5 {[%clk 0:01:29.7]} 30. h3 {[%clk 0:01:23.9]} 30...
h5 {[%clk 0:01:26.9]} 31. Rg1 {[%clk 0:01:23]} 31... Rg8 {[%clk 0:01:25.3]} 32.
b3 {[%clk 0:01:16.6]} 32... axb3 {[%clk 0:01:22]} 33. Rxb3 {[%clk 0:01:17.2]}
33... Re7 {[%clk 0:01:22.8]} 34. a4 {[%clk 0:00:59.8]} 34... g4 {[%clk
0:01:22.4]} 35. hxg4+ {[%clk 0:01:00.5]} 35... hxg4 {[%clk 0:01:23]} 36. Rxg4
{[%clk 0:01:01]} 36... Rxg4 {[%clk 0:01:22.8]} 37. fxg4+ {[%clk 0:01:02.2]}
37... Kxg4 {[%clk 0:01:24.7]} 38. a5 {[%clk 0:01:03.2]} 38... Rf7+ {[%clk
0:01:23.1]} 39. Ke2 {[%clk 0:01:03.7]} 39... Rh7 {[%clk 0:01:18]} 40. Rb6 {[%clk
0:00:56.3]} 40... Rh2+ {[%clk 0:01:14.5]} 41. Kd3 {[%clk 0:00:56.7]} 41... Ra2
{[%clk 0:00:58.9]} 42. Rxb7 {[%clk 0:00:57.3]} 42... Rxa5 {[%clk 0:01:00.3]} 43.
Rg7+ {[%clk 0:00:49.7]} 43... Kf3 {[%clk 0:00:57.1]} 44. Rf7+ {[%clk 0:00:49.9]}
44... Kg3 {[%clk 0:00:57.9]} 45. Rf6 {[%clk 0:00:45.3]} 45... Ra3+ {[%clk
0:00:55.3]} 46. Kd2 {[%clk 0:00:46.3]} 46... Ra2+ {[%clk 0:00:54.4]} 47. Kd3
{[%clk 0:00:47]} 47... Ra3+ {[%clk 0:00:55.6]} 48. Kd2 {[%clk 0:00:47.8]} 48...
Ra2+ {[%clk 0:00:56.5]} 49. Kc3 {[%clk 0:00:48.7]} 49... Ra3+ {[%clk 0:00:56.9]}
50. Kb4 {[%clk 0:00:49.1]} 50... Rxe3 {[%clk 0:00:55.8]} 51. Rxc6 {[%clk
0:00:49.7]} 51... Kf4 {[%clk 0:00:23.4]} 52. Kc5 {[%clk 0:00:42.3]} 52... Rh3
{[%clk 0:00:23.1]} 53. Rf6+ {[%clk 0:00:38.8]} 53... Ke4 {[%clk 0:00:23.2]} 54.
Re6+ {[%clk 0:00:39.7]} 54... Kd3 {[%clk 0:00:21.9]} 55. Kxd5 {[%clk 0:00:39.2]}
55... Rh4 {[%clk 0:00:22.4]} 56. Kc5 {[%clk 0:00:37.6]} 56... Rxd4 {[%clk
0:00:22.5]} 57. Rd6 {[%clk 0:00:38.6]} 57... Rxd6 {[%clk 0:00:23]} 58. Kxd6
{[%clk 0:00:40.5]} 1/2-1/2

[Event "*** Titled Tuesday Blitz"]
[Site "Chess.com"]
[Date "2018.05.01"]
[Round "6"]
[White "juniortay"]
[Black "Blitzstream"]
[Result "0-1"]
[WhiteElo "2350"]
[BlackElo "2475"]
[TimeControl "180+2"]
[EndTime "14:22:21 PDT"]
[Termination "Blitzstream won on time"]

1. e4 {[%clk 0:03:01.9]} 1... g6 {[%clk 0:03:00.9]} 2. d4 {[%clk 0:03:01.4]}
2... Bg7 {[%clk 0:03:02.4]} 3. Nc3 {[%clk 0:03:02.1]} 3... b6 {[%clk 0:03:03.8]}
4. h3 {[%clk 0:03:02.2]} 4... Bb7 {[%clk 0:03:05.3]} 5. Nf3 {[%clk 0:03:03.5]}
5... e6 {[%clk 0:03:06.7]} 6. Bd3 {[%clk 0:03:04.6]} 6... Ne7 {[%clk 0:03:08.3]}
7. Be3 {[%clk 0:03:05.1]} 7... d6 {[%clk 0:03:09.8]} 8. O-O {[%clk 0:03:04.4]}
8... Nd7 {[%clk 0:03:11.4]} 9. a4 {[%clk 0:03:05.4]} 9... a6 {[%clk 0:03:12.7]}
10. Qd2 {[%clk 0:03:05.7]} 10... h6 {[%clk 0:03:13.8]} 11. Rfe1 {[%clk
0:03:05.4]} 11... c5 {[%clk 0:03:10.7]} 12. Ne2 {[%clk 0:02:52.1]} 12... Qc7
{[%clk 0:03:09.4]} 13. c3 {[%clk 0:02:52]} 13... g5 {[%clk 0:02:41.6]} 14. Ng3
{[%clk 0:02:51.1]} 14... Nf6 {[%clk 0:02:40.2]} 15. e5 {[%clk 0:02:43.1]} 15...
dxe5 {[%clk 0:02:39.4]} 16. dxe5 {[%clk 0:02:43]} 16... Nd7 {[%clk 0:02:34.1]}
17. Nh5 {[%clk 0:02:34.1]} 17... Bxe5 {[%clk 0:02:28]} 18. Nxe5 {[%clk
0:02:19.8]} 18... Qxe5 {[%clk 0:02:10.6]} 19. Bf4 {[%clk 0:02:05.3]} 19... Qd5
{[%clk 0:02:06.1]} 20. Be4 {[%clk 0:01:42]} 20... Qxd2 {[%clk 0:02:03.8]} 21.
Bxd2 {[%clk 0:01:43.9]} 21... Bxe4 {[%clk 0:02:04.5]} 22. Rxe4 {[%clk
0:01:44.4]} 22... O-O-O {[%clk 0:02:03.2]} 23. c4 {[%clk 0:01:32.4]} 23... Nc6
{[%clk 0:01:53.8]} 24. Bc3 {[%clk 0:01:31.1]} 24... e5 {[%clk 0:01:32.4]} 25. g4
{[%clk 0:01:21.5]} 25... Nd4 {[%clk 0:01:24.4]} 26. a5 {[%clk 0:01:04.9]} 26...
b5 {[%clk 0:01:19.7]} 27. cxb5 {[%clk 0:00:59.9]} 27... axb5 {[%clk 0:01:20.7]}
28. a6 {[%clk 0:00:59.9]} 28... Nc6 {[%clk 0:00:54.3]} 29. Ng7 {[%clk
0:00:43.5]} 29... Kc7 {[%clk 0:00:51.7]} 30. Nf5 {[%clk 0:00:42.2]} 30... h5
{[%clk 0:00:48.5]} 31. Kg2 {[%clk 0:00:36.9]} 31... hxg4 {[%clk 0:00:48.1]} 32.
hxg4 {[%clk 0:00:37.9]} 32... f6 {[%clk 0:00:43.5]} 33. Ree1 {[%clk 0:00:19.2]}
33... Nb6 {[%clk 0:00:44]} 34. Rh1 {[%clk 0:00:14.5]} 34... Nd5 {[%clk
0:00:43.1]} 35. Bd2 {[%clk 0:00:14.3]} 35... Kb6 {[%clk 0:00:41.8]} 36. Rxh8
{[%clk 0:00:09.6]} 36... Rxh8 {[%clk 0:00:42.3]} 37. Nd6 {[%clk 0:00:11.5]}
37... Ra8 {[%clk 0:00:30]} 38. Rh1 {[%clk 0:00:10]} 38... Rxa6 {[%clk
0:00:28.5]} 39. Rh7 {[%clk 0:00:11.4]} 39... Nce7 {[%clk 0:00:25.2]} 40. Kf3
{[%clk 0:00:09.1]} 40... Ra2 {[%clk 0:00:26.2]} 41. Bc1 {[%clk 0:00:08.1]} 41...
Ra1 {[%clk 0:00:26.6]} 42. Bd2 {[%clk 0:00:09.2]} 42... Rb1 {[%clk 0:00:28]} 43.
Ke4 {[%clk 0:00:08.7]} 43... Rxb2 {[%clk 0:00:27.2]} 44. Be3 {[%clk 0:00:09.4]}
44... Kc6 {[%clk 0:00:27.1]} 45. Ne8 {[%clk 0:00:04.6]} 45... b4 {[%clk
0:00:24.5]} 46. Rh6 {[%clk 0:00:02.8]} 46... b3 {[%clk 0:00:22.7]} 47. Nxf6
{[%clk 0:00:04]} 47... Nxf6+ {[%clk 0:00:24.6]} 48. Rxf6+ {[%clk 0:00:05.2]}
48... Kb5 {[%clk 0:00:26.5]} 49. Re6 {[%clk 0:00:05]} 49... Nc6 {[%clk
0:00:27.2]} 50. Kd5 {[%clk 0:00:05.3]} 50... Nb4+ {[%clk 0:00:27]} 51. Kxe5
{[%clk 0:00:04.9]} 51... Rc2 {[%clk 0:00:28.4]} 0-1

[Event "*** Titled Tuesday Blitz"]
[Site "Chess.com"]
[Date "2018.05.01"]
[Round "6"]
[White "lucasmito"]
[Black "Kirill_Klukin"]
[Result "1-0"]
[WhiteElo "2366"]
[BlackElo "2483"]
[TimeControl "180+2"]
[EndTime "14:22:23 PDT"]
[Termination "lucasmito won by resignation"]

1. e4 {[%clk 0:03:01.9]} 1... c5 {[%clk 0:02:59.7]} 2. Nf3 {[%clk 0:03:02.9]}
2... Nc6 {[%clk 0:03:00.1]} 3. d4 {[%clk 0:03:04.1]} 3... cxd4 {[%clk
0:03:01.1]} 4. Nxd4 {[%clk 0:03:03.8]} 4... e5 {[%clk 0:03:02.5]} 5. Nb5 {[%clk
0:03:04.8]} 5... d6 {[%clk 0:03:03.1]} 6. N1c3 {[%clk 0:03:06.4]} 6... a6 {[%clk
0:03:04]} 7. Na3 {[%clk 0:03:08]} 7... Be7 {[%clk 0:03:05.3]} 8. Nc4 {[%clk
0:03:05.5]} 8... b5 {[%clk 0:03:05.9]} 9. Ne3 {[%clk 0:03:05.8]} 9... Nf6 {[%clk
0:03:07.2]} 10. Ned5 {[%clk 0:03:05.8]} 10... Nxd5 {[%clk 0:03:05]} 11. Nxd5
{[%clk 0:03:06.3]} 11... O-O {[%clk 0:03:02.3]} 12. a4 {[%clk 0:03:07.3]} 12...
Rb8 {[%clk 0:02:57]} 13. Be3 {[%clk 0:03:03.1]} 13... Bg5 {[%clk 0:02:54.2]} 14.
axb5 {[%clk 0:02:59.7]} 14... axb5 {[%clk 0:02:54.9]} 15. Be2 {[%clk 0:02:49.2]}
15... Be6 {[%clk 0:02:55]} 16. O-O {[%clk 0:02:40.6]} 16... Bxe3 {[%clk
0:02:53.2]} 17. Nxe3 {[%clk 0:02:40.3]} 17... Qc7 {[%clk 0:02:53.6]} 18. Nd5
{[%clk 0:02:39]} 18... Bxd5 {[%clk 0:02:53.3]} 19. exd5 {[%clk 0:02:36]} 19...
Nd4 {[%clk 0:02:21.2]} 20. Bd3 {[%clk 0:02:35.7]} 20... b4 {[%clk 0:02:22.3]}
21. Ra4 {[%clk 0:02:30.9]} 21... Rfc8 {[%clk 0:02:22.5]} 22. Qd2 {[%clk
0:02:20.3]} 22... Nxc2 {[%clk 0:02:17.5]} 23. Rc1 {[%clk 0:02:21.6]} 23... b3
{[%clk 0:02:18.6]} 24. Rc4 {[%clk 0:02:19.3]} 24... Qxc4 {[%clk 0:01:52.2]} 25.
Bxc4 {[%clk 0:02:21.2]} 25... Rxc4 {[%clk 0:01:53.6]} 26. g3 {[%clk 0:02:17.2]}
26... h6 {[%clk 0:01:54.3]} 27. Qd3 {[%clk 0:02:10.6]} 27... Rd4 {[%clk
0:01:51.2]} 28. Qc3 {[%clk 0:02:10.6]} 28... Rxd5 {[%clk 0:01:50.3]} 29. Qc7
{[%clk 0:01:44.3]} 29... Rdb5 {[%clk 0:00:33.4]} 30. Qxd6 {[%clk 0:01:39.1]}
30... e4 {[%clk 0:00:34.3]} 31. Rd1 {[%clk 0:01:26.1]} 31... e3 {[%clk
0:00:34.1]} 32. fxe3 {[%clk 0:01:12]} 32... Nxe3 {[%clk 0:00:35.1]} 33. Rd3
{[%clk 0:00:59.6]} 33... Nc4 {[%clk 0:00:36]} 34. Qd4 {[%clk 0:00:47.7]} 34...
Ne5 {[%clk 0:00:35.7]} 35. Re3 {[%clk 0:00:41.5]} 35... f6 {[%clk 0:00:37.1]}
36. Rc3 {[%clk 0:00:36.6]} 36... Kh7 {[%clk 0:00:32.9]} 37. Qe4+ {[%clk
0:00:37]} 37... Kg8 {[%clk 0:00:32.3]} 38. Qf5 {[%clk 0:00:30]} 38... R5b6
{[%clk 0:00:28.1]} 39. Rc7 {[%clk 0:00:21.6]} 39... Rd6 {[%clk 0:00:18.4]} 40.
Rc8+ {[%clk 0:00:17.9]} 40... Rxc8 {[%clk 0:00:17.7]} 41. Qxc8+ {[%clk
0:00:19.8]} 41... Kh7 {[%clk 0:00:18.7]} 42. Qf5+ {[%clk 0:00:19.8]} 42... Kg8
{[%clk 0:00:16.4]} 43. Qc8+ {[%clk 0:00:20.8]} 43... Kh7 {[%clk 0:00:17.5]} 44.
Qf5+ {[%clk 0:00:16.5]} 44... g6 {[%clk 0:00:18.3]} 45. Qc8 {[%clk 0:00:17.6]}
45... Kg7 {[%clk 0:00:16.8]} 46. Qb7+ {[%clk 0:00:15.8]} 46... Nf7 {[%clk
0:00:18.3]} 47. Qxb3 {[%clk 0:00:16.8]} 47... h5 {[%clk 0:00:19.6]} 48. Qc3
{[%clk 0:00:18.2]} 48... Rb6 {[%clk 0:00:19.8]} 49. b4 {[%clk 0:00:19]} 49... g5
{[%clk 0:00:21.3]} 50. Qc5 {[%clk 0:00:20.2]} 50... Re6 {[%clk 0:00:22.7]} 51.
b5 {[%clk 0:00:21.3]} 51... Ne5 {[%clk 0:00:24.3]} 52. b6 {[%clk 0:00:20.6]}
52... Nf3+ {[%clk 0:00:25.7]} 53. Kf2 {[%clk 0:00:20.2]} 53... g4 {[%clk
0:00:27.2]} 54. b7 {[%clk 0:00:20.1]} 1-0